fUSD/lending_fUSD_20240627
["ID","MTS","AMOUNT","RATE_DAILY","PERIOD"]
[330480743,1719475842268,-257.0,0.000203,2]
[330480744,1719475842277,-981.0,0.000203,2]
[330480745,1719475842289,-332.0,0.000203,2]
[330480746,1719475842299,-160.75,0.00020373,2]
[330480747,1719475842309,-209.15905144,0.00020374,2]
[330480748,1719475842319,-1970.01503513,0.00020374,2]
[330480749,1719475842330,-140364.21884088,0.00020376,2]
[330480750,1719475842340,-28270.4607936,0.00020376,2]
[330480751,1719475842350,-151.0,0.00020376,2]
[330480752,1719475842362,-151.0,0.00020376,2]
[330480753,1719475842371,-180.686906,0.00020376,2]
[330480754,1719475842381,-180.686906,0.00020376,2]
[330480755,1719475842391,-151.0,0.00020376,2]
[330480756,1719475842400,-151.0,0.00020376,2]
[330480757,1719475842410,-151.0,0.00020376,2]
[330480758,1719475842420,-214.131354,0.00020376,2]
[330480759,1719475842429,-151.0,0.00020376,2]
[330480760,1719475842439,-151.0,0.00020376,2]
[330480761,1719475842449,-501.384023,0.00020376,2]
[330480762,1719475842459,-151.0,0.00020376,2]
[330480763,1719475842468,-501.384023,0.00020376,2]
[330480764,1719475842479,-151.0,0.00020376,2]
[330480765,1719475842489,-151.0,0.00020376,2]
[330480766,1719475842498,-151.0,0.00020376,2]
[330480767,1719475842508,-151.0,0.00020376,2]
[330480768,1719475842517,-151.0,0.00020376,2]
[330480769,1719475842526,-151.0,0.00020376,2]
[330480770,1719475842535,-151.0,0.00020376,2]
[330480771,1719475842545,-151.0,0.00020376,2]
[330480772,1719475842556,-873.106364,0.00020376,2]
[330480773,1719475842566,-873.106364,0.00020376,2]
[330480774,1719475842577,-472.505524,0.00020376,2]
[330480775,1719475842586,-472.505524,0.00020376,2]
[330480776,1719475842596,-151.0,0.00020376,2]
[330480777,1719475842606,-162.880608,0.00020376,2]
[330480778,1719475842616,-151.0,0.00020376,2]
[330480779,1719475842625,-151.0,0.00020376,2]
[330480780,1719475842634,-219.41582989,0.00020377,2]
[330480781,1719475842643,-7522.99390145,0.00020377,2]
[330480782,1719475842653,-185.84527678,0.00020378,2]
[330480783,1719475842662,-310.90496221,0.00020379,2]
[330480784,1719475842672,-140364.21884088,0.00020381,2]
[330480785,1719475842681,-151.0,0.00020381,2]
[330480786,1719475842691,-151.0,0.00020381,2]
[330480787,1719475842700,-151.0,0.00020381,2]
[330480788,1719475842709,-151.0,0.00020381,2]
[330480789,1719475842719,-151.0,0.00020381,2]
[330480790,1719475842728,-223.101441,0.00020381,2]
[330480791,1719475842737,-214.447894,0.00020381,2]
[330480792,1719475842746,-223.101441,0.00020381,2]
[330480793,1719475842755,-214.447894,0.00020381,2]
[330480794,1719475842764,-151.0,0.00020381,2]
[330480795,1719475842773,-151.0,0.00020381,2]
[330480796,1719475842783,-555.297687,0.00020381,2]
[330480797,1719475842792,-555.297687,0.00020381,2]
[330480798,1719475842801,-204.605997,0.00020381,2]
[330480799,1719475842810,-157.048293,0.00020381,2]
[330480800,1719475842819,-204.605997,0.00020381,2]
[330480801,1719475842828,-151.0,0.00020381,2]
[330480802,1719475842837,-151.0,0.00020381,2]
[330480803,1719475842846,-175.924079,0.00020381,2]
[330480804,1719475842856,-175.924079,0.00020381,2]
[330480805,1719475842867,-151.0,0.00020381,2]
[330480806,1719475842877,-470.23237,0.00020381,2]
[330480807,1719475842886,-470.23237,0.00020381,2]
[330480808,1719475842896,-709.422706,0.00020381,2]
[330480809,1719475842905,-709.422706,0.00020381,2]
[330480810,1719475842914,-151.0,0.00020381,2]
[330480811,1719475842924,-673.944101,0.00020381,2]
[330480812,1719475842933,-673.944101,0.00020381,2]
[330480814,1719475842942,-151.0,0.00020381,2]
[330480816,1719475842956,-271.028847,0.00020381,2]
[330480818,1719475842971,-151.0,0.00020383,2]
[330480820,1719475842981,-151.0,0.00020383,2]
[330480822,1719475842990,-237.757019,0.00020383,2]
[330480824,1719475843001,-151.0,0.00020383,2]
[330480826,1719475843010,-180.686906,0.00020383,2]
[330480827,1719475843019,-180.686906,0.00020383,2]
[330480828,1719475843028,-151.0,0.00020383,2]
[330480829,1719475843039,-151.0,0.00020383,2]
[330480830,1719475843049,-151.0,0.00020383,2]
[330480832,1719475843058,-151.0,0.00020383,2]
[330480833,1719475843067,-501.384023,0.00020383,2]
[330480834,1719475843076,-151.0,0.00020383,2]
[330480835,1719475843086,-151.0,0.00020383,2]
[330480836,1719475843095,-501.384023,0.00020383,2]
[330480837,1719475843105,-151.0,0.00020383,2]
[330480838,1719475843115,-151.0,0.00020383,2]
[330480839,1719475843125,-151.0,0.00020383,2]
[330480840,1719475843134,-151.0,0.00020383,2]
[330480841,1719475843144,-151.0,0.00020383,2]
[330480842,1719475843154,-151.0,0.00020383,2]
[330480843,1719475843164,-151.0,0.00020383,2]
[330480844,1719475843174,-151.0,0.00020383,2]
[330480845,1719475843184,-873.106364,0.00020383,2]
[330480846,1719475843193,-873.106364,0.00020383,2]
[330480847,1719475843202,-472.505524,0.00020383,2]
[330480848,1719475843213,-472.505524,0.00020383,2]
[330480849,1719475843223,-151.0,0.00020383,2]
[330480850,1719475843233,-151.0,0.00020383,2]
[330480851,1719475843243,-151.0,0.00020383,2]
[330480852,1719475843254,-140364.21884088,0.00020383,2]
[330480853,1719475843264,-310.90496221,0.00020384,2]
[330480854,1719475843274,-219.41582989,0.00020384,2]
[330480855,1719475843283,-310.90496221,0.00020387,2]
[330480856,1719475843292,-7522.99390145,0.00020387,2]
[330480857,1719475843302,-1278.90896331,0.0002039,2]
[330480858,1719475843312,-185.84527678,0.00020392,2]
[330480859,1719475843321,-310.90496221,0.00020395,2]
[330480860,1719475843331,-1278.90896331,0.00020395,2]
[330480861,1719475843341,-254.29892698,0.00020397,2]
[330480862,1719475843350,-185.84527678,0.00020397,2]
[330480863,1719475843359,-1278.90896331,0.00020397,2]
[330480864,1719475843369,-254.29892698,0.00020399,2]
[330480865,1719475843378,-7522.99390145,0.00020399,2]
[330480866,1719475843387,-1278.90896331,0.000204,2]
[330480867,1719475843397,-981.0,0.000204,2]
[330480868,1719475843407,-1024.0,0.000204,2]
[330480869,1719475843416,-275.5,0.000204,2]
[330480870,1719475843425,-1800.0,0.000204,7]
[330480871,1719475843434,-254.29892698,0.00020402,2]
[330480872,1719475843443,-185.84527678,0.00020403,2]
[330480873,1719475843452,-185.84527678,0.00020404,2]
[330480874,1719475843461,-28270.4607936,0.00020406,2]
[330480875,1719475843471,-155.314985,0.00020407,2]
[330480876,1719475843480,-151.0,0.00020407,2]
[330480877,1719475843490,-151.0,0.00020407,2]
[330480878,1719475843499,-151.0,0.00020407,2]
[330480879,1719475843509,-151.0,0.00020407,2]
[330480880,1719475843518,-223.101441,0.00020407,2]
[330480881,1719475843528,-214.447894,0.00020407,2]
[330480882,1719475843537,-223.101441,0.00020407,2]
[330480883,1719475843547,-214.447894,0.00020407,2]
[330480884,1719475843557,-151.0,0.00020407,2]
[330480885,1719475843566,-151.0,0.00020407,2]
[330480886,1719475843576,-555.297687,0.00020407,2]
[330480887,1719475843585,-555.297687,0.00020407,2]
[330480888,1719475843594,-204.605997,0.00020407,2]
[330480889,1719475843603,-204.605997,0.00020407,2]
[330480890,1719475843613,-151.0,0.00020407,2]
[330480891,1719475843622,-151.0,0.00020407,2]
[330480892,1719475843631,-175.924079,0.00020407,2]
[330480893,1719475843640,-175.924079,0.00020407,2]
[330480894,1719475843651,-151.0,0.00020407,2]
[330480895,1719475843661,-470.23237,0.00020407,2]
[330480896,1719475843670,-470.23237,0.00020407,2]
[330480897,1719475843679,-709.422706,0.00020407,2]
[330480898,1719475843689,-709.422706,0.00020407,2]
[330480899,1719475843698,-151.0,0.00020407,2]
[330480900,1719475843708,-673.944101,0.00020407,2]
[330480901,1719475843717,-673.944101,0.00020407,2]
[330480902,1719475843727,-151.0,0.00020407,2]
[330480903,1719475843736,-85638.70895085,0.00020407,2]
[330480904,1719475844831,-3166.82215011,0.00015294,2]
[330480905,1719475844840,-54725.50989003,0.00020407,2]
[330480906,1719475844849,-254.29892698,0.00020408,2]
[330480907,1719475844859,-300.0,0.000205,7]
[330480908,1719475844873,-300.0,0.00020521,2]
[330480909,1719475844882,-2062.45654965,0.00020537,2]
[330480910,1719475844891,-151.0,0.00020537,2]
[330480911,1719475844900,-180.686906,0.00020537,2]
[330480912,1719475844911,-180.686906,0.00020537,2]
[330480913,1719475844921,-151.0,0.00020537,2]
[330480914,1719475844930,-151.0,0.00020537,2]
[330480915,1719475844940,-151.0,0.00020537,2]
[330480916,1719475844949,-171.93,0.00020548,2]
[330480917,1719475844962,-300.0,0.000206,7]
[330480918,1719475844971,-160.395736,0.00020687,2]
[330480919,1719475844980,-247.472784,0.00020687,2]
[330480920,1719475844990,-154.209434,0.00020687,2]
[330480921,1719475845000,-472.505524,0.00020687,2]
[330480922,1719475845010,-472.505524,0.00020687,2]
[330480923,1719475845019,-151.0,0.00020687,2]
[330480924,1719475845028,-151.0,0.00020687,2]
[330480925,1719475845040,-151.0,0.00020687,2]
[330480926,1719475845049,-884.45915145,0.000207,7]
[330480927,1719475845059,-151.0,0.000207,2]
[330480928,1719475845069,-501.384023,0.000207,2]
[330480929,1719475845078,-151.0,0.000207,2]
[330480930,1719475845087,-151.0,0.000207,2]
[330480931,1719475845096,-501.384023,0.000207,2]
[330480932,1719475845105,-151.0,0.000207,2]
[330480933,1719475845116,-151.0,0.000207,2]
[330480934,1719475845125,-151.0,0.000207,2]
[330480935,1719475845134,-151.0,0.000207,2]
[330480936,1719475845143,-151.0,0.000207,2]
[330480937,1719475845151,-151.0,0.000207,2]
[330480938,1719475845162,-151.0,0.000207,2]
[330480939,1719475845171,-151.0,0.000207,2]
[330480940,1719475845181,-300.0,0.000207,7]
[330480941,1719475845190,-873.106364,0.000207,2]
[330480942,1719475845199,-873.106364,0.000207,2]
[330480943,1719475845207,-625.0,0.00020701,2]
[330480944,1719475845217,-211.810807,0.00020718,2]
[330480945,1719475845226,-170.878313,0.00020718,2]
[330480946,1719475845235,-151.0,0.00020718,2]
[330480947,1719475845244,-151.0,0.00020718,2]
[330480948,1719475845253,-1579.93416807,0.00020718,2]
[330480949,1719475845262,-300.0,0.000208,7]
[330480950,1719475845271,-1235.7239422,0.00020842,2]
[330480951,1719475845280,-9096.40904052,0.0002087,2]
[330480952,1719475845289,-151.0,0.000209,2]
[330480953,1719475845299,-151.0,0.000209,2]
[330480954,1719475845308,-151.0,0.000209,2]
[330480955,1719475845317,-673.944101,0.000209,2]
[330480956,1719475845326,-673.944101,0.000209,2]
[330480957,1719475845335,-151.0,0.000209,2]
[330480958,1719475845344,-151.0,0.000209,2]
[330480959,1719475845354,-180.686906,0.000209,2]
[330480960,1719475845364,-180.686906,0.000209,2]
[330480961,1719475845375,-180.686906,0.000209,2]
[330480962,1719475845385,-180.686906,0.000209,2]
[330480963,1719475845396,-151.0,0.000209,2]
[330480964,1719475845405,-151.0,0.000209,2]
[330480965,1719475845414,-151.0,0.000209,2]
[330480966,1719475845423,-151.0,0.000209,2]
[330480967,1719475845432,-151.0,0.000209,2]
[330480968,1719475845441,-151.0,0.000209,2]
[330480969,1719475845450,-151.0,0.000209,2]
[330480970,1719475845459,-151.0,0.000209,2]
[330480971,1719475845468,-501.384023,0.000209,2]
[330480972,1719475845478,-151.0,0.000209,2]
[330480973,1719475845487,-151.0,0.000209,2]
[330480974,1719475845495,-501.384023,0.000209,2]
[330480975,1719475845504,-160.372105,0.000209,2]
[330480976,1719475845513,-501.384023,0.000209,2]
[330480977,1719475845522,-501.384023,0.000209,2]
[330480978,1719475845531,-151.0,0.000209,2]
[330480979,1719475845539,-295.333,0.000209,2]
[330480980,1719475845548,-151.0,0.000209,2]
[330480981,1719475845557,-151.0,0.000209,2]
[330480982,1719475845566,-181.29392,0.000209,2]
[330480983,1719475845575,-151.0,0.000209,2]
[330480984,1719475845584,-151.0,0.000209,2]
[330480985,1719475845593,-151.0,0.000209,2]
[330480986,1719475845602,-151.0,0.000209,2]
[330480987,1719475845610,-151.0,0.000209,2]
[330480988,1719475845622,-151.0,0.000209,2]
[330480989,1719475845631,-151.0,0.000209,2]
[330480990,1719475845639,-151.0,0.000209,2]
[330480991,1719475845648,-151.0,0.000209,2]
[330480992,1719475845657,-151.0,0.000209,2]
[330480993,1719475845667,-891.0,0.000209,7]
[330480994,1719475845675,-873.106364,0.000209,2]
[330480995,1719475845684,-497.14337015,0.000209,2]
[330481026,1719475846296,-2267.77742835,0.0002,2]
[330481027,1719475846314,-7255.48613712,0.0002,2]
[330481028,1719475846323,-375.96299385,0.000209,2]
[330481029,1719475846332,-873.106364,0.000209,2]
[330481030,1719475846342,-873.106364,0.000209,2]
[330481031,1719475846351,-472.505524,0.000209,2]
[330481032,1719475846360,-472.505524,0.000209,2]
[330481033,1719475846370,-472.505524,0.000209,2]
[330481034,1719475846379,-472.505524,0.000209,2]
[330481035,1719475846388,-151.0,0.000209,2]
[330481036,1719475846398,-211.93875,0.000209,2]
[330481037,1719475846407,-178.59443935,0.000209,2]
[330481038,1719475846417,-56707.56360207,0.00021,2]
[330481039,1719475846426,-504.38576692,0.00021,2]
[330481040,1719475846436,-1250.0,0.00021,2]
[330481041,1719475846446,-160.395736,0.00021031,2]
[330481042,1719475846456,-160.395736,0.00021376,2]
[330481043,1719475846471,-5619.01267359,0.000214,2]
[330481044,1719475846482,-193.26382296,0.000214,2]
[330481045,1719475846492,-153.81122333,0.000214,2]
[330481046,1719475846502,-2062.45654965,0.000214,2]
[330481047,1719475846512,-1579.93416807,0.000214,2]
[330481048,1719475846521,-275.5,0.000214,2]
[330481049,1719475846532,-1235.7239422,0.000214,2]
[330481050,1719475846544,-151.0,0.000214,2]
[330481051,1719475846554,-6005.0,0.00021463,7]
[330481052,1719475846565,-15156.78080031,0.00021479,2]
[330481053,1719475846575,-361.83725998,0.0002149,2]
[330481054,1719475846587,-151.0,0.00021499,2]
[330481055,1719475846597,-555.297687,0.00021499,2]
[330481056,1719475846607,-555.297687,0.00021499,2]
[330481057,1719475846618,-204.605997,0.00021499,2]
[330481058,1719475846627,-204.605997,0.00021499,2]
[330481059,1719475846637,-151.0,0.00021499,2]
[330481060,1719475846648,-151.0,0.00021499,2]
[330481061,1719475846659,-175.924079,0.00021499,2]
[330481062,1719475846671,-175.924079,0.00021499,2]
[330481063,1719475846681,-151.0,0.00021499,2]
[330481064,1719475846692,-470.23237,0.00021499,2]
[330481065,1719475846702,-470.23237,0.00021499,2]
[330481066,1719475846712,-709.422706,0.00021499,2]
[330481067,1719475846722,-709.422706,0.00021499,2]
[330481068,1719475846732,-218.70843876,0.000215,5]
[330481069,1719475846741,-396874.2411842,0.000215,7]
[330481070,1719475846758,-325.961526,0.000215,7]
[330481071,1719475846769,-28504.50106015,0.000215,7]
[330481072,1719475847296,-2000.0,0.00013799,2]
[330481073,1719475847321,-494.24286437,0.00013083,2]
[330481074,1719475847332,-114.77273563,0.00013799,2]
[330481075,1719475847345,-2135.38868787,0.00013799,2]
[330481076,1719475847357,-850.605367,0.00013999,2]
[330481077,1719475847368,-850.605367,0.0002018,2]
[330481078,1719475847378,-850.605367,0.00020381,2]
[330481079,1719475847388,-850.605367,0.00020407,2]
[330481080,1719475847399,-850.605367,0.000214,2]
[330481081,1719475847409,-658.52188133,0.000215,7]
[330481082,1719475847517,-792.73224283,0.00020374,2]
[330481084,1719475865131,263.28511281,0.00010794,2]
[330481093,1719475946820,181.02431915,0.00010794,2]
[330481161,1719476526593,-2376.06489013,0.00011098,2]
[330481162,1719476526615,-4090.71720512,0.00011098,2]
[330481163,1719476526640,-545.37650781,0.00011098,2]
[330481164,1719476526665,-24754.24850447,0.00011199,2]
[330481165,1719476526689,-15423.93998128,0.00011199,2]
[330481166,1719476526710,-250.0,0.00012032,2]
[330481167,1719476526733,-23900.0,0.00012032,2]
[330481168,1719476526756,-1000.0,0.00012032,2]
[330481169,1719476526778,-593.48,0.00013067,2]
[330481170,1719476526800,-155.0,0.00013083,2]
[330481171,1719476526822,-10537.00283536,0.00013083,2]
[330481172,1719476526846,-1000.0,0.00013536,2]
[330481173,1719476526869,-39439.6962,0.00013546,2]
[330481174,1719476526892,-10994.0339,0.00013636,2]
[330481175,1719476526915,-2500.0,0.00013702,2]
[330481176,1719476526940,-3439.57,0.0001379,2]
[330481177,1719476526965,-5542.34835838,0.00013799,2]
[330481178,1719476526989,-167.69540199,0.00013799,2]
[330481179,1719476527013,-1022.08172846,0.00013799,2]
[330481180,1719476527036,-327.18357988,0.00013799,2]
[330481181,1719476527059,-180.91863001,0.00013879,2]
[330481182,1719476527082,-499.99,0.00013899,2]
[330481183,1719476527104,-1662.71,0.00013899,2]
[330481184,1719476527126,-7500.0,0.00013899,2]
[330481185,1719476527148,-515418.88053451,0.00013989,2]
[330481186,1719476527176,-151.0,0.00013999,2]
[330481187,1719476527198,-467952.28558507,0.00013999,2]
[330481190,1719476533912,-79840.34708881,0.00013999,2]
[330481195,1719476551471,1055.6345569,0.00013083,7]
[330481201,1719476586455,-24695.81662037,0.00013083,2]
[330481202,1719476586479,-155.0,0.00013083,2]
[330481203,1719476586502,-155.0,0.00013083,2]
[330481204,1719476586868,-835.1444,0.00013083,2]
[330481206,1719476595998,-546957.48827388,0.00013083,2]
[330481207,1719476596026,-990.1444,0.00013083,2]
[330481209,1719476611824,-14433.79558128,0.00013083,2]
[330481210,1719476611849,-990.1444,0.00013789,2]
[330481224,1719476708527,-5005.13717288,0.00013799,2]
[330481225,1719476708551,-547792.63267388,0.00013999,2]
[330481229,1719476722491,-547792.63267388,0.00013999,2]
[330481255,1719476875116,151.81,0.00024879,120]
[330481300,1719477032350,-623.86,0.00013546,2]
[330481301,1719477032365,-44.95234953,0.00013736,2]
[330481302,1719477032381,-15378.98763175,0.00013736,2]
[330481303,1719477032393,-150.0,0.00013898,2]
[330481304,1719477032407,-895.70708598,0.00013899,2]
[330481305,1719477032420,-895.70708597,0.00013899,2]
[330481306,1719477032433,-1022.08172846,0.00013899,2]
[330481307,1719477032445,-327.18357988,0.00013899,2]
[330481308,1719477032462,-5559.3720087,0.00013899,2]
[330481309,1719477032476,-2772.55482895,0.00013999,2]
[330481310,1719477032488,-73024.10288915,0.00013999,2]
[330481311,1719477032505,-2270.07882856,0.00013999,2]
[330481312,1719477032520,-1587.34859548,0.00013999,2]
[330481313,1719477032536,-2012.29595931,0.00013999,2]
[330481314,1719477032550,-74568.51036413,0.00013999,2]
[330481315,1719477032611,-4782.84240991,0.00013999,2]
[330481316,1719477032630,-9109.98551208,0.00013999,2]
[330481317,1719477032650,-1325.8073129,0.00013999,2]
[330481318,1719477032669,-919.32000046,0.00013999,2]
[330481319,1719477032686,-630.85,0.00013999,2]
[330481320,1719477032705,-377561.4908019,0.00013999,2]
[330481321,1719477032721,-256.01,0.00014208,2]
[330481322,1719477032735,-7458.87810783,0.000145,2]
[330481323,1719477032750,-5559.37200866,0.00014732,2]
[330481324,1719477032763,-1022.08172846,0.00014971,2]
[330481325,1719477032777,-1662.71,0.00014999,2]
[330481326,1719477032791,-499.99,0.00014999,2]
[330481327,1719477032807,-10537.00283536,0.00014999,2]
[330481328,1719477032823,-12369.59383049,0.00014999,2]
[330481329,1719477032838,-3976.15379484,0.00015,2]
[330481330,1719477032851,-5000.0,0.00015,2]
[330481331,1719477032865,-24630.6982386,0.00015,2]
[330481332,1719477032879,-1115.0,0.00015,2]
[330481333,1719477032893,-1000.0,0.0001504,2]
[330481334,1719477032907,-1610.78,0.0001504,2]
[330481335,1719477032921,-6079.2,0.00015232,2]
[330481336,1719477032933,-210.0,0.00015243,2]
[330481337,1719477032947,-400.0,0.00015258,2]
[330481338,1719477032961,-200.0,0.00015464,2]
[330481339,1719477032974,-155.0,0.00015535,2]
[330481340,1719477032987,-4090.71720512,0.00015535,2]
[330481341,1719477033000,-5559.37200866,0.00015566,2]
[330481342,1719477033014,-10000.0,0.00015645,2]
[330481343,1719477033027,-250.0,0.0001572,2]
[330481344,1719477033040,-990.1444,0.00015758,2]
[330481345,1719477033052,-10994.0339,0.00015758,2]
[330481346,1719477033065,-2500.0,0.00015758,2]
[330481347,1719477033078,-39439.6962,0.00015758,2]
[330481348,1719477033090,-623.86,0.0001581,2]
[330481349,1719477033110,-1022.08172846,0.00016042,2]
[330481350,1719477033125,-14809.102,0.00016136,2]
[330481351,1719477033140,-1160.14,0.00016136,2]
[330481352,1719477033154,-545.37650781,0.00016172,2]
[330481353,1719477033168,-168.99,0.00016301,2]
[330481354,1719477033182,-5559.37200866,0.00016399,2]
[330481355,1719477033196,-1000.0,0.00016544,2]
[330481356,1719477033209,-151.81,0.00016586,2]
[330481357,1719477033222,-192.03,0.00016712,2]
[330481358,1719477033235,-293.0,0.00016717,2]
[330481359,1719477033248,-250.0,0.0001673,2]
[330481360,1719477033262,-7500.0,0.00017016,2]
[330481361,1719477033275,-1022.08172846,0.00017114,2]
[330481362,1719477033288,-400.0,0.00017165,2]
[330481363,1719477033301,-5559.37200866,0.00017233,2]
[330481364,1719477033314,-161.97,0.00017259,2]
[330481365,1719477033328,-5596.79021776,0.00017259,2]
[330481366,1719477033341,-23900.0,0.00017264,2]
[330481367,1719477033354,-943.35,0.00017289,2]
[330481369,1719477033367,-1937.04,0.00017331,2]
[330481370,1719477033380,-4456.63835158,0.00017444,2]
[330481371,1719477033397,-4456.63835158,0.00017444,2]
[330481372,1719477033412,-3106.94505996,0.00017533,2]
[330481373,1719477033424,-163.68,0.00017785,2]
[330481374,1719477033437,-1000.0,0.00018048,2]
[330481375,1719477033450,-5559.37200866,0.00018066,2]
[330481376,1719477033467,-623.86,0.00018074,2]
[330481377,1719477033479,-2504.21297721,0.00018081,2]
[330481378,1719477033492,-161.97,0.00018122,2]
[330481379,1719477033506,-1022.08172846,0.00018185,2]
[330481380,1719477033518,-653.0,0.00018524,2]
[330481381,1719477033531,-1133.92751376,0.00018649,2]
[330481382,1719477033545,-1276.35572019,0.00018717,2]
[330481383,1719477033558,-346.07679139,0.00018864,2]
[330481384,1719477033572,-370.27430286,0.00018899,2]
[330481385,1719477033586,-226.97665617,0.00018899,2]
[330481386,1719477033598,-269.98102298,0.00018899,2]
[330481387,1719477033611,-199.46090647,0.00018899,2]
[330481388,1719477033624,-475.04909202,0.00018899,2]
[330481389,1719477033637,-525.89553732,0.000189,2]
[330481390,1719477033653,-404.0000001,0.000189,2]
[330481391,1719477033668,-326.34,0.000189,2]
[330481392,1719477033683,-420.0,0.000189,2]
[330481393,1719477033698,-517.9614323,0.000189,2]
[330481394,1719477033716,-820.87408869,0.000189,2]
[330481395,1719477033770,-814.21819735,0.000189,2]
[330481396,1719477033785,-1730.0827529,0.000189,2]
[330481397,1719477033797,-160.75,0.000189,2]
[330481398,1719477033810,-217.87188322,0.00018919,2]
[330481399,1719477033824,-155.67697001,0.00018919,2]
[330481400,1719477033837,-161.97,0.00018985,2]
[330481401,1719477033850,-232.57592211,0.00018999,2]
[330481402,1719477033861,-400.0,0.00019073,2]
[330481403,1719477033873,-444.0646032,0.00019177,2]
[330481404,1719477033886,-400.68055782,0.00019178,2]
[330481405,1719477033899,-500.0,0.00019178,2]
[330481406,1719477033911,-158.09366154,0.00019178,2]
[330481407,1719477033924,-273.75712379,0.00019178,2]
[330481408,1719477033936,-500.0,0.00019178,2]
[330481409,1719477033949,-500.0,0.00019178,2]
[330481410,1719477033961,-500.0,0.00019178,2]
[330481411,1719477033974,-393.42157802,0.00019178,2]
[330481412,1719477033990,-106.57842198,0.00019178,2]
[330481413,1719477034001,-250.0,0.00019178,2]
[330481414,1719477034014,-1022.08172846,0.00019257,2]
[330481415,1719477034027,-167.0,0.00019713,2]
[330481416,1719477034040,-2916.86352923,0.00019733,2]
[330481417,1719477034055,-2109.43741355,0.00019733,2]
[330481418,1719477034070,-533.07106588,0.00019733,2]
[330481419,1719477034083,-161.97,0.00019848,2]
[330481420,1719477034096,-256.01,0.00019891,2]
[330481421,1719477034108,-306.14755285,0.0002,2]
[330481422,1719477034121,-163.66935224,0.0002,2]
[330481423,1719477034133,-347.60875311,0.0002,7]
[330481424,1719477034148,-365.53771181,0.0002,7]
[330481425,1719477034162,-1094.6407865,0.0002,7]
[330481426,1719477034176,-2181.99604447,0.0002,7]
[330481427,1719477034190,-325.09234905,0.0002,7]
[330481428,1719477035975,-1616.25242135,0.0002,7]
[330481429,1719477035985,-150.0,0.0002,2]
[330481430,1719477035995,-160.395736,0.00020097,2]
[330481431,1719477036004,-162.10792485,0.0002017,2]
[330481432,1719477036014,-162.10792485,0.0002017,2]
[330481433,1719477036024,-162.10792485,0.0002017,2]
[330481434,1719477036033,-162.10792485,0.0002017,2]
[330481435,1719477036043,-780.6031,0.00020273,2]
[330481436,1719477036053,-1022.08172846,0.00020328,2]
[330481437,1719477036064,-21.8933266,0.00020338,2]
[330481439,1719477038297,-2183.16426548,0.00015535,2]
[330481440,1719477038389,-192.90062465,0.00015535,2]
[330481441,1719477038399,-625.55024867,0.00018835,2]
[330481442,1719477038409,-601.9666734,0.00020338,2]
[330481443,1719477038419,-3659.72832198,0.00020567,2]
[330481444,1719477038464,-471.62772102,0.00020567,2]
[330481445,1719477038477,-911.62683173,0.00020567,2]
[330481446,1719477038489,-516.38913393,0.00020567,2]
[330481447,1719477038499,-161.97,0.00020711,2]
[330481448,1719477038509,-151.81,0.00020733,2]
[330481449,1719477038519,-400.0,0.0002098,2]
[330481450,1719477038529,-155.0,0.00021,2]
[330481451,1719477038541,-1848.02346056,0.00021069,2]
[330481452,1719477038551,-1199.2,0.000212,2]
[330481453,1719477038560,-500.0,0.00021327,2]
[330481454,1719477038571,-200.0,0.00021327,2]
[330481455,1719477038584,-944.49585619,0.00021368,4]
[330481456,1719477038593,-163.82490802,0.0002139,2]